fUSD/lending_fUSD_20250506
["ID","MTS","AMOUNT","RATE_DAILY","PERIOD"]
[360131752,1746562239064,-1134.64,0.00019896,2]
[360131754,1746562239073,-450.0,0.00019896,2]
[360131755,1746562239086,-450.0,0.00019896,2]
[360131757,1746562239095,-450.0,0.00019896,2]
[360131759,1746562239104,-450.0,0.00019896,2]
[360131761,1746562239113,-473.06,0.00019896,2]
[360131763,1746562239123,-450.0,0.00019896,2]
[360131765,1746562239132,-450.0,0.00019896,2]
[360131767,1746562239142,-450.0,0.00019896,2]
[360131769,1746562239151,-450.0,0.00019896,2]
[360131771,1746562239160,-450.0,0.00019896,2]
[360131773,1746562239169,-450.0,0.00019896,2]
[360131775,1746562239178,-450.0,0.00019896,2]
[360131777,1746562239187,-450.0,0.00019896,2]
[360131779,1746562239197,-450.0,0.00019896,2]
[360131781,1746562239206,-450.0,0.00019896,2]
[360131783,1746562239215,-451.77370109,0.00019896,2]
[360131785,1746562239224,-450.0,0.00019896,2]
[360131787,1746562239234,-451.36733697,0.00019896,2]
[360131789,1746562239243,-674.23,0.00019896,2]
[360131791,1746562239252,-450.0,0.00019896,2]
[360131793,1746562239262,-450.0,0.00019896,2]
[360131795,1746562239270,-450.0,0.00019896,2]
[360131797,1746562239279,-4242.74,0.00019896,2]
[360131799,1746562239288,-450.0,0.00019896,2]
[360131801,1746562239297,-450.0,0.00019896,2]
[360131803,1746562239306,-452.10817663,0.00019896,2]
[360131805,1746562239315,-452.78573797,0.00019896,2]
[360131807,1746562239324,-450.0,0.00019896,2]
[360131809,1746562239334,-450.0,0.00019896,2]
[360131811,1746562239343,-450.0,0.00019896,2]
[360131812,1746562239352,-450.0,0.00019896,2]
[360131814,1746562239362,-450.0,0.00019896,2]
[360131816,1746562239371,-450.0,0.00019896,2]
[360131818,1746562239381,-450.0,0.00019896,2]
[360131820,1746562239390,-450.0,0.00019896,2]
[360131822,1746562239399,-450.0,0.00019896,2]
[360131825,1746562239409,-450.0,0.00019896,2]
[360131826,1746562239419,-450.0,0.00019896,2]
[360131828,1746562239428,-450.0,0.00019896,2]
[360131830,1746562239437,-267.4,0.00019896,2]
[360131832,1746562239447,-450.0,0.00019896,2]
[360131836,1746562239457,-450.0,0.00019896,2]
[360131838,1746562239467,-450.0,0.00019896,2]
[360131840,1746562239476,-450.0,0.00019896,2]
[360131842,1746562239485,-450.0,0.00019896,2]
[360131843,1746562239494,-450.0,0.00019896,2]
[360131845,1746562239503,-450.0,0.00019896,2]
[360131847,1746562239513,-450.0,0.00019896,2]
[360131849,1746562239522,-450.0,0.00019896,2]
[360131851,1746562239532,-450.0,0.00019896,2]
[360131853,1746562239541,-450.0,0.00019896,2]
[360131855,1746562239550,-1078.45,0.00019896,2]
[360131857,1746562239559,-221.45602879,0.00019896,2]
[360131859,1746562239569,-514.09,0.00019896,2]
[360131861,1746562239578,-450.0,0.00019896,2]
[360131863,1746562239588,-450.0,0.00019896,2]
[360131865,1746562239597,-450.0,0.00019896,2]
[360131867,1746562239607,-450.0,0.00019896,2]
[360131870,1746562239616,-450.0,0.00019896,2]
[360131873,1746562239626,-450.0,0.00019896,2]
[360131875,1746562239635,-450.0,0.00019896,2]
[360131877,1746562239644,-450.0,0.00019896,2]
[360131879,1746562239654,-1328.68,0.00019896,2]
[360131880,1746562239664,-450.0,0.00019896,2]
[360131882,1746562239673,-450.0,0.00019896,2]
[360131883,1746562239682,-521.53019206,0.00019896,2]
[360131885,1746562239691,-738.48,0.00019896,2]
[360131887,1746562239700,-450.0,0.00019896,2]
[360131888,1746562239709,-450.0,0.00019896,2]
[360131890,1746562239718,-450.0,0.00019896,2]
[360131891,1746562239728,-450.0,0.00019896,2]
[360131893,1746562239737,-450.0,0.00019896,2]
[360131894,1746562239747,-450.0,0.00019896,2]
[360131896,1746562239756,-450.0,0.00019896,2]
[360131898,1746562239765,-450.0,0.00019897,2]
[360131899,1746562239774,-194.67925216,0.00019897,2]
[360131901,1746562239784,-162.58,0.00019897,2]
[360131903,1746562239793,-450.0,0.00019897,2]
[360131904,1746562239802,-450.0,0.00019897,2]
[360131906,1746562239811,-450.0,0.00019897,2]
[360131908,1746562239820,-450.0,0.00019897,2]
[360131909,1746562239830,-450.0,0.00019897,2]
[360131911,1746562239840,-238.31960185,0.00019897,2]
[360131913,1746562239849,-450.0,0.00019897,2]
[360131914,1746562239858,-467.41898386,0.00019897,2]
[360131916,1746562239868,-450.0,0.00019897,2]
[360131918,1746562239877,-505.16,0.00019897,2]
[360131919,1746562239887,-450.0,0.00019897,2]
[360131921,1746562239896,-450.0,0.00019897,2]
[360131922,1746562239906,-450.0,0.00019897,2]
[360131924,1746562239916,-450.0,0.00019897,2]
[360131926,1746562239925,-450.0,0.00019897,2]
[360131927,1746562239934,-450.0,0.00019897,2]
[360131929,1746562239943,-450.0,0.00019897,2]
[360131931,1746562239953,-450.0,0.00019897,2]
[360131932,1746562239962,-250.0,0.00019897,2]
[360131934,1746562239972,-361.04161542,0.00019897,2]
[360131936,1746562239981,-450.0,0.00019897,2]
[360131937,1746562239990,-539.94977132,0.00019897,2]
[360131939,1746562240000,-450.0,0.00019897,2]
[360131941,1746562240010,-450.0,0.00019897,2]
[360131943,1746562240020,-450.0,0.00019897,2]
[360131944,1746562240029,-450.0,0.00019897,2]
[360131946,1746562240039,-450.0,0.00019897,2]
[360131948,1746562240048,-450.0,0.00019897,2]
[360131950,1746562240057,-450.0,0.00019897,2]
[360131951,1746562240067,-450.0,0.00019897,2]
[360131953,1746562240078,-477.38,0.00019897,2]
[360131955,1746562240088,-450.0,0.00019897,2]
[360131956,1746562240098,-450.0,0.00019897,2]
[360131958,1746562240107,-450.0,0.00019897,2]
[360131960,1746562240116,-450.0,0.00019897,2]
[360131961,1746562240126,-450.0,0.00019897,2]
[360131963,1746562240135,-450.0,0.00019897,2]
[360131965,1746562240145,-450.0,0.00019898,2]
[360131967,1746562240154,-190.662,0.00019898,2]
[360131968,1746562240164,-2725.168,0.00019898,2]
[360131970,1746562240173,-450.0,0.00019898,2]
[360131972,1746562240182,-450.0,0.00019898,2]
[360131974,1746562240191,-450.0,0.00019898,2]
[360131975,1746562240201,-432.75,0.00019898,2]
[360131977,1746562240210,-450.0,0.00019898,2]
[360131979,1746562240219,-450.0,0.00019898,2]
[360131980,1746562240229,-450.0,0.00019898,2]
[360131982,1746562240238,-450.0,0.00019898,2]
[360131984,1746562240248,-500.0,0.00019898,2]
[360131986,1746562240257,-450.0,0.00019898,2]
[360131987,1746562240266,-450.0,0.00019898,2]
[360131989,1746562240279,-450.0,0.00019898,2]
[360131991,1746562240288,-450.0,0.00019898,2]
[360131993,1746562240298,-450.0,0.00019898,2]
[360131995,1746562240307,-450.0,0.00019898,2]
[360131996,1746562240317,-450.0,0.00019899,2]
[360131998,1746562240326,-297.37,0.00019899,2]
[360132000,1746562240335,-261.26,0.00019899,2]
[360132002,1746562240345,-450.0,0.00019899,2]
[360132003,1746562240355,-450.0,0.00019899,2]
[360132005,1746562240364,-450.0,0.00019899,2]
[360132007,1746562240374,-450.0,0.00019899,2]
[360132009,1746562240383,-450.0,0.00019899,2]
[360132011,1746562240393,-450.0,0.00019899,2]
[360132012,1746562240404,-450.0,0.00019899,2]
[360132014,1746562240413,-450.0,0.00019899,2]
[360132016,1746562240423,-450.0,0.00019899,2]
[360132017,1746562240432,-505.16,0.00019899,2]
[360132019,1746562240441,-505.16,0.00019899,2]
[360132021,1746562240451,-505.16,0.00019899,2]
[360132023,1746562240461,-450.0,0.00019899,2]
[360132024,1746562240470,-450.0,0.00019899,2]
[360132026,1746562240480,-450.0,0.00019899,2]
[360132028,1746562240489,-450.0,0.00019899,2]
[360132030,1746562240499,-450.0,0.00019899,2]
[360132031,1746562240509,-450.0,0.00019899,2]
[360132033,1746562240519,-450.0,0.00019899,2]
[360132035,1746562240529,-450.0,0.00019899,2]
[360132037,1746562240539,-450.0,0.00019899,2]
[360132039,1746562240548,-450.0,0.00019899,2]
[360132040,1746562240557,-450.0,0.00019899,2]
[360132042,1746562240567,-450.0,0.00019899,2]
[360132044,1746562240576,-195.65792056,0.00019899,2]
[360132046,1746562240585,-450.0,0.00019899,2]
[360132047,1746562240594,-450.0,0.00019899,2]
[360132049,1746562240604,-255.95,0.00019899,2]
[360132051,1746562240613,-450.0,0.00019899,2]
[360132052,1746562240622,-450.0,0.00019899,2]
[360132054,1746562240631,-450.0,0.00019899,2]
[360132056,1746562240641,-450.0,0.00019899,2]
[360132058,1746562240650,-450.0,0.00019899,2]
[360132059,1746562240659,-450.0,0.00019899,2]
[360132061,1746562240668,-1242.66341,0.000199,2]
[360132063,1746562240678,-153.532226,0.000199,2]
[360132065,1746562240687,-153.532226,0.000199,2]
[360132066,1746562240695,-153.532226,0.000199,2]
[360132068,1746562240705,-153.532226,0.000199,2]
[360132070,1746562240714,-151.0,0.000199,2]
[360132072,1746562240723,-151.0,0.000199,2]
[360132073,1746562240732,-151.0,0.000199,2]
[360132075,1746562240741,-151.0,0.000199,2]
[360132077,1746562240750,-151.0,0.000199,2]
[360132078,1746562240759,-151.0,0.000199,2]
[360132080,1746562240768,-151.0,0.000199,2]
[360132082,1746562240777,-151.0,0.000199,2]
[360132084,1746562240786,-293.106753,0.000199,2]
[360132085,1746562240795,-318.082385,0.000199,2]
[360132087,1746562240804,-318.082385,0.000199,2]
[360132089,1746562240813,-318.082385,0.000199,2]
[360132091,1746562240823,-318.082385,0.000199,2]
[360132092,1746562240832,-151.0,0.000199,2]
[360132094,1746562240842,-154.03848,0.000199,2]
[360132096,1746562240851,-151.0,0.000199,2]
[360132098,1746562240860,-151.0,0.000199,2]
[360132099,1746562240869,-395.160617,0.000199,2]
[360132101,1746562240878,-395.160617,0.000199,2]
[360132103,1746562240887,-395.160617,0.000199,2]
[360132105,1746562240897,-395.160617,0.000199,2]
[360132106,1746562240906,-157.005154,0.000199,2]
[360132108,1746562240916,-151.0,0.000199,2]
[360132110,1746562240925,-151.0,0.000199,2]
[360132112,1746562240934,-209.743536,0.000199,2]
[360132114,1746562240943,-209.743536,0.000199,2]
[360132116,1746562240953,-209.743536,0.000199,2]
[360132118,1746562240962,-209.743536,0.000199,2]
[360132120,1746562240971,-151.0,0.000199,2]
[360132122,1746562240980,-151.0,0.000199,2]
[360132123,1746562240989,-151.0,0.000199,2]
[360132124,1746562240999,-151.0,0.000199,2]
[360132125,1746562241008,-151.0,0.000199,2]
[360132126,1746562241018,-151.0,0.000199,2]
[360132127,1746562241027,-153.53295438,0.000199,2]
[360132128,1746562241037,-731.674783,0.000199,2]
[360132129,1746562241046,-731.674783,0.000199,2]
[360132130,1746562241055,-731.674783,0.000199,2]
[360132131,1746562241064,-731.674783,0.000199,2]
[360132132,1746562241073,-194.67925216,0.000199,2]
[360132133,1746562241082,-12500.0,0.000199,2]
[360132134,1746562241092,-12000.0,0.000199,2]
[360132135,1746562241105,-3555.24685108,0.000199,2]
[360132136,1746562241114,-154.14628201,0.000199,2]
[360132137,1746562241124,-6923.41244563,0.000199,2]
[360132138,1746562241133,-3453.14924877,0.000199,2]
[360132139,1746562241143,-150.0,0.00019918,7]
[360132140,1746562241152,-150.0,0.00019929,2]
[360132141,1746562241161,-450.0,0.00019936,2]
[360132142,1746562241171,-450.0,0.00019936,2]
[360132143,1746562241181,-450.0,0.00019936,2]
[360132145,1746562241192,-450.0,0.00019936,2]
[360132146,1746562241201,-1243.0,0.00019937,2]
[360132148,1746562241210,-916.0,0.00019937,2]
[360132149,1746562241220,-582.0,0.00019937,2]
[360132151,1746562241230,-1452.0,0.00019937,2]
[360132153,1746562241240,-551.0,0.00019937,2]
[360132155,1746562241249,-878.0,0.00019937,2]
[360132157,1746562241259,-183.325,0.00019937,2]
[360132159,1746562241269,-6764.0,0.00019937,2]
[360132161,1746562241278,-4015.0,0.00019937,2]
[360132163,1746562241288,-2100.0,0.00019944,2]
[360132165,1746562241297,-150.71776479,0.00019947,2]
[360132167,1746562241306,-177.91,0.00019947,2]
[360132169,1746562241315,-450.0,0.00019947,2]
[360132171,1746562241325,-451.55029221,0.00019947,2]
[360132173,1746562241334,-450.0,0.00019947,2]
[360132175,1746562241344,-450.0,0.00019947,2]
[360132177,1746562241353,-450.0,0.00019947,2]
[360132179,1746562241362,-450.0,0.00019947,2]
[360132181,1746562241372,-2312.8945332,0.00019972,2]
[360132183,1746562241382,-500.0,0.00019973,2]
[360132185,1746562241391,-511.69053894,0.00019973,2]
[360132187,1746562241400,-500.0,0.00019973,2]
[360132189,1746562241410,-500.0,0.00019973,2]
[360132191,1746562241419,-500.0,0.00019973,2]
[360132193,1746562241429,-500.0,0.00019973,2]
[360132195,1746562241438,-500.0,0.00019973,2]
[360132197,1746562241448,-500.0,0.00019973,2]
[360132199,1746562241457,-500.0,0.00019973,2]
[360132201,1746562241466,-500.0,0.00019973,2]
[360132203,1746562241476,-647.28444883,0.00019973,2]
[360132205,1746562241485,-500.0,0.00019973,2]
[360132207,1746562241495,-500.0,0.00019973,2]
[360132209,1746562241505,-500.0,0.00019973,2]
[360132211,1746562241514,-606.34741704,0.00019973,2]
[360132213,1746562241524,-450.0,0.00019981,2]
[360132215,1746562241535,-450.0,0.00019981,2]
[360132217,1746562241544,-450.0,0.00019981,2]
[360132219,1746562241554,-450.0,0.00019982,2]
[360132221,1746562241563,-567.69,0.00019982,2]
[360132223,1746562241572,-647.7,0.00019982,2]
[360132225,1746562241582,-21519.66,0.00019982,2]
[360132227,1746562241591,-450.0,0.00019982,2]
[360132229,1746562241600,-450.0,0.00019982,2]
[360132231,1746562241610,-450.0,0.00019982,2]
[360132233,1746562241619,-450.0,0.00019982,2]
[360132235,1746562241629,-634.9,0.00019982,2]
[360132237,1746562241638,-1304.22,0.00019982,2]
[360132239,1746562241647,-450.0,0.00019982,2]
[360132241,1746562241656,-21378.88,0.00019982,2]
[360132243,1746562241666,-5121.91,0.00019982,2]
[360132245,1746562241675,-450.0,0.00019982,2]
[360132247,1746562241685,-450.0,0.00019982,2]
[360132249,1746562241694,-673.89,0.00019982,2]
[360132251,1746562241705,-456.59,0.00019982,2]
[360132253,1746562241715,-3047.16,0.00019982,2]
[360132255,1746562241724,-450.0,0.00019982,2]
[360132257,1746562241734,-1134.64,0.00019982,2]
[360132259,1746562241743,-450.0,0.00019982,2]
[360132261,1746562241753,-674.23,0.00019982,2]
[360132263,1746562241762,-450.0,0.00019982,2]
[360132265,1746562241772,-4242.74,0.00019982,2]
[360132267,1746562241782,-450.0,0.00019982,2]
[360132269,1746562241791,-450.0,0.00019982,2]
[360132271,1746562241800,-450.0,0.00019982,2]
[360132273,1746562241809,-450.0,0.00019982,2]
[360132275,1746562241818,-450.0,0.00019982,2]
[360132277,1746562241828,-450.0,0.00019982,2]
[360132279,1746562241837,-450.0,0.00019982,2]
[360132281,1746562241846,-1078.45,0.00019982,2]
[360132283,1746562241855,-450.0,0.00019982,2]
[360132285,1746562241864,-1328.68,0.00019982,2]
[360132287,1746562241874,-738.48,0.00019982,2]
[360132289,1746562241883,-450.0,0.00019982,2]
[360132291,1746562241892,-450.0,0.00019982,2]
[360132293,1746562241901,-450.0,0.00019982,2]
[360132295,1746562241910,-3444.56752307,0.00019983,2]
[360132297,1746562241919,-450.0,0.00019983,2]
[360132299,1746562241928,-886.10447915,0.00019983,2]
[360132301,1746562241938,-450.0,0.00019983,2]
[360132303,1746562241947,-505.16,0.00019983,2]
[360132305,1746562241956,-450.0,0.00019983,2]
[360132307,1746562241966,-450.0,0.00019983,2]
[360132309,1746562241975,-500.0,0.00019983,2]
[360132311,1746562241984,-450.0,0.00019983,2]
[360132312,1746562241993,-450.0,0.00019983,2]
[360132314,1746562242003,-450.0,0.00019983,2]
[360132316,1746562242012,-450.0,0.00019983,2]
[360132319,1746562242021,-450.0,0.00019983,2]
[360132321,1746562242031,-450.0,0.00019983,2]
[360132323,1746562242040,-500.0,0.00019983,2]
[360132325,1746562242050,-333.7106827,0.00019983,2]
[360132327,1746562242060,-153.532226,0.00019984,2]
[360132328,1746562242069,-153.532226,0.00019984,2]
[360132331,1746562242081,-151.0,0.00019984,2]
[360132333,1746562242092,-151.0,0.00019984,2]
[360132335,1746562242101,-151.0,0.00019984,2]
[360132337,1746562242110,-318.082385,0.00019984,2]
[360132339,1746562242119,-318.082385,0.00019984,2]
[360132341,1746562242130,-162.355907,0.00019984,2]
[360132343,1746562242139,-395.160617,0.00019984,2]
[360132345,1746562242149,-395.160617,0.00019984,2]
[360132347,1746562242158,-151.0,0.00019984,2]
[360132349,1746562242168,-209.743536,0.00019984,2]
[360132351,1746562242178,-209.743536,0.00019984,2]
[360132353,1746562242188,-151.0,0.00019984,2]
[360132355,1746562242197,-151.0,0.00019984,2]
[360132357,1746562242206,-151.0,0.00019984,2]
[360132359,1746562242215,-731.674783,0.00019984,2]
[360132361,1746562242224,-731.674783,0.00019984,2]
[360132363,1746562242234,-552.8707704,0.00019984,2]
[360132365,1746562242243,-450.0,0.00019984,2]
[360132367,1746562242253,-336.98,0.00019984,2]
[360132369,1746562242262,-215.0,0.00019984,2]
[360132371,1746562242271,-450.0,0.00019984,2]
[360132373,1746562242281,-647.7,0.00019984,2]
[360132375,1746562242290,-21519.66,0.00019984,2]
[360132377,1746562242299,-450.0,0.00019984,2]
[360132395,1746562242468,-450.0,0.00019984,2]
[360132397,1746562242478,-512.13,0.00019984,2]
[360132400,1746562242488,-634.9,0.00019984,2]
[360132402,1746562242497,-450.0,0.00019984,2]
[360132404,1746562242507,-1304.22,0.00019984,2]
[360132406,1746562242517,-21378.88,0.00019984,2]
[360132408,1746562242526,-5121.91,0.00019984,2]
[360132410,1746562242536,-450.0,0.00019984,2]
[360132412,1746562242545,-450.0,0.00019984,2]
[360132414,1746562242555,-459.90322281,0.00019984,2]
[360132416,1746562242564,-673.89,0.00019984,2]
[360132419,1746562242574,-456.59,0.00019984,2]
[360132422,1746562242583,-3047.16,0.00019984,2]
[360132425,1746562242592,-280.96,0.00019984,2]
[360132428,1746562242602,-1134.64,0.00019984,2]
[360132430,1746562242611,-450.0,0.00019984,2]
[360132433,1746562242620,-450.0,0.00019984,2]
[360132436,1746562242630,-674.23,0.00019984,2]
[360132439,1746562242639,-450.0,0.00019984,2]
[360132441,1746562242648,-4242.74,0.00019984,2]
[360132443,1746562242658,-374.06,0.00019984,2]
[360132445,1746562242668,-450.0,0.00019984,2]
[360132447,1746562242677,-450.0,0.00019984,2]
[360132449,1746562242686,-450.0,0.00019984,2]
[360132451,1746562242696,-450.0,0.00019984,2]
[360132453,1746562242706,-269.82,0.00019984,2]
[360132456,1746562242715,-450.0,0.00019984,2]
[360132458,1746562242724,-450.0,0.00019984,2]
[360132460,1746562242733,-450.0,0.00019984,2]
[360132462,1746562242743,-1078.45,0.00019984,2]
[360132464,1746562242752,-450.0,0.00019984,2]
[360132465,1746562242762,-450.0,0.00019984,2]
[360132467,1746562242771,-1328.68,0.00019984,2]
[360132469,1746562242780,-738.48,0.00019984,2]
[360132471,1746562242789,-450.0,0.00019984,2]
[360132473,1746562242798,-443.44832887,0.00019984,2]
[360132475,1746562242807,-450.0,0.00019984,2]
[360132477,1746562242816,-450.0,0.00019984,2]
[360132479,1746562242825,-450.0,0.00019984,2]
[360132481,1746562242835,-153.532226,0.00019985,2]
[360132483,1746562242844,-153.532226,0.00019985,2]
[360132485,1746562242853,-395.160617,0.00019985,2]
[360132487,1746562242863,-395.160617,0.00019985,2]
[360132490,1746562242872,-209.743536,0.00019985,2]
[360132492,1746562242881,-209.743536,0.00019985,2]
[360132494,1746562242890,-450.0,0.00019985,2]
[360132496,1746562242899,-450.0,0.00019985,2]
[360132497,1746562242909,-450.0,0.00019985,2]
[360132499,1746562242918,-450.0,0.00019985,2]
[360132501,1746562242927,-505.16,0.00019985,2]
[360132503,1746562242937,-505.16,0.00019985,2]
[360132505,1746562242946,-450.0,0.00019985,2]
[360132507,1746562242955,-450.0,0.00019985,2]
[360132509,1746562242964,-450.0,0.00019985,2]
[360132512,1746562242974,-450.0,0.00019985,2]
[360132513,1746562242983,-450.0,0.00019985,2]
[360132515,1746562242993,-236.2990322,0.00019985,2]
[360132517,1746562243002,-647.7,0.00019985,2]
[360132520,1746562243011,-21519.66,0.00019985,2]
[360132521,1746562243020,-450.0,0.00019985,2]
[360132524,1746562243030,-450.0,0.00019985,2]
[360132526,1746562243040,-634.9,0.00019985,2]
[360132528,1746562243049,-330.26931173,0.00019985,2]
[360132530,1746562243058,-1304.22,0.00019985,2]
[360132532,1746562243067,-21378.88,0.00019985,2]
[360132534,1746562243081,-5121.91,0.00019985,2]
[360132536,1746562243090,-346.73456223,0.00019985,2]
[360132538,1746562243101,-450.0,0.00019985,2]
[360132540,1746562243110,-673.89,0.00019985,2]
[360132542,1746562243119,-456.59,0.00019985,2]
[360132544,1746562243130,-3047.16,0.00019985,2]
[360132546,1746562243139,-500.0,0.00019985,2]
[360132548,1746562243148,-1134.64,0.00019985,2]
[360132550,1746562243159,-276.41859022,0.00019985,2]
[360132552,1746562243169,-450.0,0.00019985,2]
[360132554,1746562243179,-450.0,0.00019985,2]
[360132556,1746562243188,-674.23,0.00019985,2]
[360132558,1746562243197,-450.0,0.00019985,2]
[360132560,1746562243207,-4242.74,0.00019985,2]
[360132562,1746562243215,-450.0,0.00019985,2]
[360132564,1746562243225,-450.0,0.00019985,2]
[360132566,1746562243235,-450.0,0.00019985,2]
[360132568,1746562243244,-450.0,0.00019985,2]
[360132570,1746562243254,-450.0,0.00019985,2]
[360132572,1746562243263,-450.0,0.00019985,2]
[360132574,1746562243272,-450.0,0.00019985,2]
[360132576,1746562243282,-450.0,0.00019985,2]
[360132578,1746562243291,-450.0,0.00019985,2]
[360132580,1746562243301,-330.24,0.00019985,2]
[360132583,1746562243311,-450.0,0.00019985,2]
[360132585,1746562243320,-1078.45,0.00019985,2]
[360132587,1746562243330,-450.0,0.00019985,2]
[360132589,1746562243339,-450.0,0.00019985,2]
[360132591,1746562243348,-1328.68,0.00019985,2]
[360132593,1746562243358,-738.48,0.00019985,2]
[360132595,1746562243367,-450.0,0.00019985,2]
[360132597,1746562243376,-450.0,0.00019985,2]
[360132599,1746562243385,-450.0,0.00019985,2]
[360132601,1746562243395,-545.0,0.00019986,2]
[360132603,1746562243405,-266.032829,0.00019986,2]
[360132605,1746562243415,-266.032829,0.00019986,2]
[360132607,1746562243425,-266.032829,0.00019986,2]
[360132609,1746562243434,-266.032829,0.00019986,2]
[360132611,1746562243443,-286.412312,0.00019986,2]
[360132613,1746562243453,-151.0,0.00019986,2]
[360132615,1746562243463,-151.0,0.00019986,2]
[360132617,1746562243472,-286.412312,0.00019986,2]
[360132619,1746562243481,-192.807619,0.00019986,2]
[360132621,1746562243490,-253.924162,0.00019986,2]
[360132623,1746562243500,-253.924162,0.00019986,2]
[360132625,1746562243509,-253.924162,0.00019986,2]
[360132627,1746562243519,-253.924162,0.00019986,2]
[360132629,1746562243528,-153.532226,0.00019986,2]
[360132631,1746562243538,-153.532226,0.00019986,2]
[360132633,1746562243547,-153.532226,0.00019986,2]
[360132635,1746562243556,-153.532226,0.00019986,2]
[360132637,1746562243566,-151.0,0.00019986,2]
[360132639,1746562243575,-151.0,0.00019986,2]
[360132641,1746562243585,-151.0,0.00019986,2]
[360132643,1746562243595,-151.0,0.00019986,2]
[360132645,1746562243604,-151.0,0.00019986,2]
[360132647,1746562243613,-151.0,0.00019986,2]
[360132649,1746562243623,-151.0,0.00019986,2]
[360132651,1746562243632,-151.0,0.00019986,2]
[360132653,1746562243641,-318.082385,0.00019986,2]
[360132655,1746562243650,-318.082385,0.00019986,2]
[360132657,1746562243659,-318.082385,0.00019986,2]
[360132659,1746562243669,-318.082385,0.00019986,2]
[360132661,1746562243679,-395.160617,0.00019986,2]
[360132663,1746562243688,-395.160617,0.00019986,2]
[360132665,1746562243697,-395.160617,0.00019986,2]
[360132667,1746562243707,-395.160617,0.00019986,2]
[360132669,1746562243716,-200.0,0.00019986,2]
[360132671,1746562243726,-209.743536,0.00019986,2]
[360132673,1746562243735,-209.743536,0.00019986,2]
[360132675,1746562243745,-209.743536,0.00019986,2]
[360132677,1746562243754,-209.743536,0.00019986,2]
[360132679,1746562243763,-151.0,0.00019986,2]
[360132681,1746562243773,-151.0,0.00019986,2]
[360132683,1746562243782,-151.0,0.00019986,2]
[360132685,1746562243791,-240.582129,0.00019986,2]
[360132687,1746562243801,-151.0,0.00019986,2]
[360132689,1746562243811,-266.434321,0.00019986,2]
[360132691,1746562243820,-151.0,0.00019986,2]
[360132693,1746562243831,-731.674783,0.00019986,2]
[360132695,1746562243840,-731.674783,0.00019986,2]
[360132697,1746562243850,-731.674783,0.00019986,2]
[360132699,1746562243859,-731.674783,0.00019986,2]
[360132701,1746562243869,-731.674783,0.00019986,2]
[360132703,1746562243878,-151.0,0.00019986,2]
[360132705,1746562243887,-731.674783,0.00019986,2]
[360132707,1746562243896,-180.288066,0.00019986,2]
[360132709,1746562243905,-180.288066,0.00019986,2]
[360132711,1746562243914,-151.0,0.00019986,2]
[360132713,1746562243923,-163.801347,0.00019986,2]
[360132715,1746562243935,-159.399757,0.00019986,2]